fUST/lending_fUST_20260525
["ID","MTS","AMOUNT","RATE_DAILY","PERIOD"]
[422980566,1779700247000,-1052.47,0.00014246,2]
[422980565,1779700247000,-914.14,0.00014246,2]
[422980574,1779700247000,-578.95,0.0001452,2]
[422980573,1779700247000,-436.52,0.0001452,2]
[422980570,1779700247000,-748.91,0.00014246,2]
[422980572,1779700247000,-1338.01,0.0001452,2]
[422980571,1779700247000,-795.35982582,0.0001452,2]
[422980575,1779700247000,-914.14,0.0001452,2]
[422980561,1779700247000,-795.12,0.00014246,2]
[422980581,1779700247000,-1338.01,0.00014794,2]
[422980567,1779700247000,-736.36,0.00014246,2]
[422980551,1779700247000,-748.91,0.00013972,2]
[422980530,1779700247000,-269.28516407,0.00013699,2]
[422980549,1779700247000,-964.47,0.00013972,2]
[422980576,1779700247000,-1052.58,0.0001452,2]
[422980514,1779700247000,-500.0,0.00013699,2]
[422980526,1779700247000,-500.0,0.00013699,2]
[422980516,1779700247000,-500.0,0.00013699,2]
[422980528,1779700247000,-500.0,0.00013699,2]
[422980520,1779700247000,-500.0,0.00013699,2]
[422980532,1779700247000,-6429.11692527,0.00013972,2]
[422980522,1779700247000,-500.0,0.00013699,2]
[422980524,1779700247000,-500.0,0.00013699,2]
[422980518,1779700247000,-500.0,0.00013699,2]
[422980536,1779700247000,-1338.01,0.00013972,2]
[422980534,1779700247000,-795.12,0.00013972,2]
[422980537,1779700247000,-500.0,0.00013972,2]
[422980540,1779700247000,-578.95,0.00013972,2]
[422980541,1779700247000,-914.14,0.00013972,2]
[422980543,1779700247000,-1052.47,0.00013972,2]
[422980547,1779700247000,-583.16,0.00013972,2]
[422980545,1779700247000,-736.36,0.00013972,2]
[422980578,1779700247000,-583.39,0.0001452,2]
[422980513,1779700247000,-500.0,0.00013699,2]
[422980577,1779700247000,-736.56,0.0001452,2]
[422980604,1779700247000,-63957.91816628,0.000175,2]
[422980603,1779700247000,-164.70516713,0.000175,2]
[422980601,1779700247000,-150.0,0.00016703,2]
[422980611,1779700247000,-2357.34211577,0.00018263,2]
[422980606,1779700247000,-162.2485441,0.00017574,2]
[422980607,1779700247000,-160.0,0.000179,31]
[422980608,1779700247000,-2692.0,0.00018,3]
[422980605,1779700247000,-3404.58344871,0.000175,2]
[422980609,1779700247000,-250.0,0.000181,2]
[422980612,1779700247000,-151.0,0.00018379,4]
[422980613,1779700247000,-66.8411941,0.000186,33]
[422980615,1779700247000,-278.65579544,8.219e-05,2]
[422980614,1779700247000,-500.0,8.219e-05,2]
[422980616,1779700247000,-500.0,8.219e-05,2]
[422980618,1779700247000,-438.87021569,8.493e-05,2]
[422980617,1779700247000,-51.60899004,8.493e-05,2]
[422980580,1779700247000,-749.01,0.0001452,2]
[422980599,1779700247000,-261.0083838,0.00016638,2]
[422980610,1779700247000,-285.0,0.00018219,2]
[422980602,1779700247000,-150.0,0.00016703,2]
[422980598,1779700247000,-2212.65957909,0.00016638,2]
[422980582,1779700247000,-578.95,0.00014794,2]
[422980579,1779700247000,-964.48,0.0001452,2]
[422980600,1779700247000,-150.0,0.00016703,2]
[422980585,1779700247000,-579.06,0.00015068,2]
[422980584,1779700247000,-1338.15,0.00015068,2]
[422980594,1779700247000,-258.0,0.00016219,2]
[422980587,1779700247000,-191.65961397,0.00016,2]
[422980586,1779700247000,-914.25,0.00015068,2]
[422980595,1779700247000,-191.65961397,0.000163,2]
[422980583,1779700247000,-914.14,0.00014794,2]
[422980589,1779700247000,-648.0,0.00016165,2]
[422980588,1779700247000,-2204.0,0.00016165,2]
[422980590,1779700247000,-1413.0,0.00016165,2]
[422980593,1779700247000,-191.65961397,0.000162,2]
[422980591,1779700247000,-443.0,0.00016165,2]
[422980592,1779700247000,-185.0,0.00016165,2]
[422980597,1779700247000,-4131.58775151,0.00016638,2]
[422980596,1779700247000,-191.65961397,0.000165,2]
[422980630,1779700249000,-474.79425802,0.0001863,30]
[422980631,1779700249000,-474.79425802,0.00018712,30]
[422980628,1779700249000,-93.1588059,0.000186,33]
[422980629,1779700249000,-330.37,0.0001863,2]
[422980625,1779700249000,-500.0,9.863e-05,2]
[422980626,1779700249000,-500.0,0.00010136,2]
[422980622,1779700249000,-500.0,9.041e-05,2]
[422980623,1779700249000,-500.0,9.315e-05,2]
[422980621,1779700249000,-500.0,8.767e-05,2]
[422980620,1779700249000,-177.87237687,8.493e-05,2]
[422980619,1779700249000,-9.52079427,8.493e-05,2]
[422980633,1779700249000,-10253.95704095,0.00018793,2]
[422980624,1779700249000,-500.0,9.589e-05,2]
[422980635,1779700249000,-330.37,0.00018904,2]
[422980627,1779700249000,-357.7,0.0001041,2]
[422980632,1779700249000,-155814.62743209,0.0001878,15]
[422980634,1779700249000,-474.79425802,0.00018795,30]
[422980648,1779700249000,-443.0,0.00019165,2]
[422980644,1779700249000,-197.2527157,0.000191,2]
[422980647,1779700249000,-1413.0,0.00019165,2]
[422980643,1779700249000,-160.0,0.00019078,3]
[422980641,1779700249000,-160.0,0.00019,2]
[422980645,1779700249000,-600.0,0.00019155,2]
[422980636,1779700249000,-474.79425802,0.00018904,30]
[422980646,1779700249000,-1415.5929229,0.0001916,2]
[422980639,1779700249000,-1000.0,0.00019,19]
[422980640,1779700249000,-3425.0,0.00019,2]
[422980638,1779700249000,-160.000002,0.00018997,2]
[422980642,1779700249000,-474.79425802,0.00019068,30]
[422980637,1779700249000,-474.79425802,0.00018986,30]
[422980682,1779700250000,-1000.0,0.0001986,5]
[422980683,1779700250000,-500.0,0.00019863,30]
[422980681,1779700250000,-1000.0,0.0001984,5]
[422980680,1779700250000,-1000.0,0.0001982,5]
[422980674,1779700250000,-1548.281318,0.0001976,5]
[422980678,1779700250000,-160.0,0.000198,30]
[422980679,1779700250000,-1000.0,0.000198,5]
[422980684,1779700250000,-500.0,0.00019863,30]
[422980676,1779700250000,-200000.0,0.00019781,30]
[422980693,1779700250000,-400.0,0.000199,7]
[422980696,1779700250000,-157.0,0.00019919,120]
[422980685,1779700250000,-500.0,0.00019863,30]
[422980692,1779700250000,-1000.0,0.0001988,5]
[422980694,1779700250000,-1000.0,0.000199,5]
[422980686,1779700250000,-500.0,0.00019863,30]
[422980677,1779700250000,-1424.0,0.00019789,10]
[422980688,1779700250000,-500.0,0.00019863,30]
[422980687,1779700250000,-500.0,0.00019863,30]
[422980689,1779700250000,-549.39963201,0.00019863,30]
[422980690,1779700250000,-11660.43543826,0.00019869,2]
[422980691,1779700250000,-162.2485441,0.00019869,2]
[422980698,1779700250000,-14966.32933463,0.00019919,120]
[422980695,1779700250000,-178.76893892,0.00019917,60]
[422980675,1779700250000,-1000.0,0.0001978,5]
[422980666,1779700250000,-346.85,0.00019569,120]
[422980671,1779700250000,-150.0,0.00019703,2]
[422980705,1779700250000,-160.0,0.00019947,120]
[422980649,1779700250000,-185.0,0.00019165,2]
[422980650,1779700250000,-474.79425802,0.00019178,30]
[422980651,1779700250000,-330.37,0.00019178,2]
[422980652,1779700250000,-474.79425802,0.0001926,30]
[422980653,1779700250000,-474.79425802,0.00019342,30]
[422980654,1779700250000,-160.0,0.00019385,2]
[422980655,1779700250000,-9155.516485,0.00019385,2]
[422980656,1779700250000,-18151.03297,0.00019385,2]
[422980658,1779700250000,-330.37,0.00019452,2]
[422980660,1779700250000,-1052.014653,0.000195,2]
[422980661,1779700250000,-160.0,0.000195,2]
[422980659,1779700250000,-606.007326,0.000195,2]
[422980657,1779700250000,-474.79425802,0.00019425,30]
[422980662,1779700250000,-1144.316816,0.000195,2]
[422980663,1779700250000,-2128.633632,0.000195,2]
[422980664,1779700250000,-474.79425802,0.00019534,30]
[422980665,1779700250000,-14411.27253061,0.00019565,3]
[422980667,1779700250000,-474.79425802,0.00019616,30]
[422980670,1779700250000,-150.0,0.00019703,2]
[422980668,1779700250000,-346.66,0.00019616,120]
[422980669,1779700250000,-150.0,0.00019703,2]
[422980672,1779700250000,-315.8614755,0.00019722,2]
[422980673,1779700250000,-330.37,0.00019726,2]
[422980706,1779700250000,-166.16014379,0.00019947,120]
[422980722,1779700250000,-151.0,0.00019947,2]
[422980699,1779700250000,-171.0,0.00019919,120]
[422980726,1779700250000,-151.0,0.00019947,2]
[422980723,1779700250000,-188.40891,0.00019947,2]
[422980704,1779700250000,-3425.0,0.00019947,120]
[422980733,1779700250000,-188.40891,0.00019947,2]
[422980734,1779700250000,-179.974416,0.00019947,2]
[422980744,1779700250000,-82.7044393,0.00019947,2]
[422980737,1779700250000,-188.40891,0.00019947,2]
[422980735,1779700250000,-188.40891,0.00019947,2]
[422980736,1779700250000,-188.40891,0.00019947,2]
[422980738,1779700250000,-188.40891,0.00019947,2]
[422980741,1779700250000,-188.40891,0.00019947,2]
[422980742,1779700250000,-188.40891,0.00019947,2]
[422980739,1779700250000,-188.40891,0.00019947,2]
[422980740,1779700250000,-188.40891,0.00019947,2]
[422980743,1779700250000,-105.7044707,0.00019947,2]
[422980746,1779700250000,-151.0,0.00019947,2]
[422980745,1779700250000,-188.408902,0.00019947,2]
[422980747,1779700250000,-151.0,0.00019947,2]
[422980748,1779700250000,-215.12542941,0.00019957,2]
[422980749,1779700250000,-1395.779,8.766e-05,2]
[422980751,1779700250000,-258.56548557,9.04e-05,2]
[422980750,1779700250000,-500.0,8.766e-05,2]
[422980752,1779700250000,-392.67331124,9.04e-05,2]
[422980724,1779700250000,-151.0,0.00019947,2]
[422980725,1779700250000,-188.40891,0.00019947,2]
[422980728,1779700250000,-151.0,0.00019947,2]
[422980721,1779700250000,-188.40891,0.00019947,2]
[422980697,1779700250000,-155.0,0.00019919,120]
[422980708,1779700250000,-151.0,0.00019947,2]
[422980707,1779700250000,-151.0,0.00019947,2]
[422980700,1779700250000,-156.0,0.00019919,120]
[422980701,1779700250000,-1000.0,0.0001992,5]
[422980702,1779700250000,-150.79,0.0001994,2]
[422980730,1779700250000,-151.0,0.00019947,2]
[422980709,1779700250000,-151.0,0.00019947,2]
[422980711,1779700250000,-151.0,0.00019947,2]
[422980713,1779700250000,-151.0,0.00019947,2]
[422980712,1779700250000,-151.0,0.00019947,2]
[422980703,1779700250000,-1000.0,0.0001994,5]
[422980720,1779700250000,-151.0,0.00019947,2]
[422980710,1779700250000,-151.0,0.00019947,2]
[422980731,1779700250000,-188.40891,0.00019947,2]
[422980732,1779700250000,-151.0,0.00019947,2]
[422980729,1779700250000,-188.40891,0.00019947,2]
[422980719,1779700250000,-188.40891,0.00019947,2]
[422980727,1779700250000,-188.40891,0.00019947,2]
[422980716,1779700250000,-151.0,0.00019947,2]
[422980717,1779700250000,-188.40891,0.00019947,2]
[422980718,1779700250000,-151.0,0.00019947,2]
[422980714,1779700250000,-188.40891,0.00019947,2]
[422980715,1779700250000,-151.071557,0.00019947,2]
[422980758,1779700831000,-1200.0,7.533e-05,2]
[422980753,1779700831000,-5000.0,7.239e-05,2]
[422980757,1779700831000,-300.0,7.532e-05,2]
[422980755,1779700831000,-331.0,7.46e-05,2]
[422980754,1779700831000,-5000.0,7.312e-05,2]
[422980756,1779700831000,-300.0,7.532e-05,2]
[422980761,1779700831000,-178.1672,7.611e-05,2]
[422980759,1779700831000,-727.3916125,7.536e-05,2]
[422980760,1779700831000,-150.0,7.574e-05,2]
[422980763,1779700831000,-300.0,7.686e-05,2]
[422980767,1779700831000,-300.0,7.686e-05,2]
[422980765,1779700831000,-300.0,7.686e-05,2]
[422980764,1779700831000,-300.0,7.686e-05,2]
[422980770,1779700831000,-300.0,7.686e-05,2]
[422980771,1779700831000,-300.0,7.686e-05,2]
[422980772,1779700831000,-300.0,7.686e-05,2]
[422980773,1779700831000,-300.0,7.686e-05,2]
[422980769,1779700831000,-300.0,7.686e-05,2]
[422980774,1779700831000,-300.0,7.686e-05,2]
[422980768,1779700831000,-300.0,7.686e-05,2]
[422980762,1779700831000,-300.0,7.686e-05,2]
[422980766,1779700831000,-300.0,7.686e-05,2]
[422980787,1779700832000,-500.0,8.219e-05,2]
[422980794,1779700832000,-500.0,8.219e-05,2]
[422980788,1779700832000,-500.0,8.219e-05,2]
[422980789,1779700832000,-500.0,8.219e-05,2]
[422980790,1779700832000,-500.0,8.219e-05,2]
[422980785,1779700832000,-500.0,8.219e-05,2]
[422980784,1779700832000,-500.0,8.219e-05,2]
[422980786,1779700832000,-500.0,8.219e-05,2]
[422980779,1779700832000,-200.59,7.982e-05,7]
[422980782,1779700832000,-500.0,8.219e-05,2]
[422980783,1779700832000,-500.0,8.219e-05,2]
[422980781,1779700832000,-500.0,8.219e-05,2]
[422980776,1779700832000,-300.0,7.686e-05,2]
[422980792,1779700832000,-500.0,8.219e-05,2]
[422980778,1779700832000,-200.0,7.982e-05,2]
[422980777,1779700832000,-600.0,7.839e-05,2]
[422980775,1779700832000,-300.0,7.686e-05,2]
[422980780,1779700832000,-500.0,8.219e-05,2]
[422980793,1779700832000,-500.0,8.219e-05,2]
[422980791,1779700832000,-500.68822794,8.219e-05,2]
[422980797,1779700832000,-500.0,8.219e-05,2]
[422980814,1779700832000,-500.0,8.219e-05,2]
[422980795,1779700832000,-500.0,8.219e-05,2]
[422980812,1779700832000,-500.0,8.219e-05,2]
[422980809,1779700832000,-297.43562378,8.219e-05,2]
[422980811,1779700832000,-205.94,8.219e-05,2]
[422980810,1779700832000,-500.0,8.219e-05,2]
[422980808,1779700832000,-634.26,8.219e-05,2]
[422980807,1779700832000,-500.0,8.219e-05,2]
[422980804,1779700832000,-500.0,8.219e-05,2]
[422980813,1779700832000,-500.0,8.219e-05,2]
[422980805,1779700832000,-500.0,8.219e-05,2]
[422980800,1779700832000,-500.0,8.219e-05,2]
[422980803,1779700832000,-500.0,8.219e-05,2]
[422980802,1779700832000,-500.0,8.219e-05,2]
[422980801,1779700832000,-518.14522174,8.219e-05,2]
[422980798,1779700832000,-358.68922499,8.219e-05,2]
[422980799,1779700832000,-500.0,8.219e-05,2]
[422980796,1779700832000,-609.5,8.219e-05,2]
[422980806,1779700832000,-500.0,8.219e-05,2]
[422980829,1779700833000,-500.0,8.219e-05,2]
[422980827,1779700833000,-500.0,8.219e-05,2]
[422980825,1779700833000,-500.0,8.219e-05,2]
[422980828,1779700833000,-500.0,8.219e-05,2]
[422980826,1779700833000,-500.0,8.219e-05,2]
[422980821,1779700833000,-500.0,8.219e-05,2]
[422980824,1779700833000,-500.0,8.219e-05,2]
[422980816,1779700833000,-500.0,8.219e-05,2]
[422980822,1779700833000,-500.0,8.219e-05,2]
[422980820,1779700833000,-500.0,8.219e-05,2]
[422980819,1779700833000,-500.0,8.219e-05,2]
[422980818,1779700833000,-256.64129641,8.219e-05,2]
[422980817,1779700833000,-425.19871338,8.219e-05,2]
[422980815,1779700833000,-500.0,8.219e-05,2]
[422980832,1779700833000,-618.65,8.219e-05,2]
[422980823,1779700833000,-217.37266049,8.219e-05,2]
[422980830,1779700833000,-334.65963656,8.219e-05,2]
[422980837,1779700833000,-500.0,8.219e-05,2]
[422980833,1779700833000,-500.0,8.219e-05,2]
[422980848,1779700833000,-243.05,8.493e-05,2]
[422980831,1779700833000,-500.0,8.219e-05,2]
[422980847,1779700833000,-58528.96593549,8.393e-05,2]
[422980846,1779700833000,-420.0,8.285e-05,2]
[422980845,1779700833000,-500.0,8.219e-05,2]
[422980842,1779700833000,-500.0,8.219e-05,2]
[422980843,1779700833000,-4981.32,8.219e-05,2]
[422980844,1779700833000,-500.0,8.219e-05,2]
[422980849,1779700833000,-373.33,8.493e-05,2]
[422980840,1779700833000,-500.0,8.219e-05,2]
[422980838,1779700833000,-500.0,8.219e-05,2]
[422980839,1779700833000,-500.0,8.219e-05,2]
[422980850,1779700833000,-500.0,8.493e-05,2]
[422980836,1779700833000,-246.14032007,8.219e-05,2]
[422980834,1779700833000,-500.0,8.219e-05,2]
[422980835,1779700833000,-500.14112481,8.219e-05,2]
[422980841,1779700833000,-500.0,8.219e-05,2]
[422980864,1779700834000,-500.0,8.493e-05,2]
[422980860,1779700834000,-634.26,8.493e-05,2]
[422980861,1779700834000,-500.0,8.493e-05,2]
[422980857,1779700834000,-500.0,8.493e-05,2]
[422980859,1779700834000,-500.0,8.493e-05,2]
[422980852,1779700834000,-643.42662742,8.493e-05,2]
[422980856,1779700834000,-500.0,8.493e-05,2]
[422980854,1779700834000,-500.0,8.493e-05,2]
[422980853,1779700834000,-511.66533808,8.493e-05,2]
[422980855,1779700834000,-500.0,8.493e-05,2]
[422980851,1779700834000,-618.85,8.493e-05,2]
[422980858,1779700834000,-632.43,8.493e-05,2]
[422980862,1779700834000,-500.0,8.493e-05,2]
[422980866,1779700834000,-353.49,8.493e-05,2]
[422980865,1779700834000,-500.0,8.493e-05,2]
[422980867,1779700834000,-500.0,8.493e-05,2]
[422980868,1779700834000,-464.48,8.493e-05,2]
[422980871,1779700834000,-500.0,8.493e-05,2]
[422980870,1779700834000,-500.0,8.493e-05,2]
[422980869,1779700834000,-500.0,8.493e-05,2]
[422980872,1779700834000,-420.97,8.493e-05,2]
[422980874,1779700834000,-500.0,8.493e-05,2]
[422980876,1779700834000,-4981.32,8.493e-05,2]
[422980875,1779700834000,-500.0,8.493e-05,2]
[422980873,1779700834000,-500.0,8.493e-05,2]
[422980877,1779700834000,-500.0,8.493e-05,2]
[422980863,1779700834000,-339.81330597,8.493e-05,2]
[422980878,1779700837000,162.14606535,8.219e-05,2]
[422980879,1779700837000,5000.0,8.5e-05,2]
[422980893,1779700906000,-585.61333967,8.219e-05,2]
[422980883,1779700906000,-5000.0,8.056e-05,2]
[422980886,1779700906000,-300.0,8.218e-05,2]
[422980884,1779700906000,-150.0,8.097e-05,2]
[422980887,1779700906000,-500.0,8.219e-05,2]
[422980889,1779700906000,-500.0,8.219e-05,2]
[422980890,1779700906000,-500.0,8.219e-05,2]
[422980888,1779700906000,-500.0,8.219e-05,2]
[422980891,1779700906000,-500.0,8.219e-05,2]
[422980895,1779700906000,-500.0,8.219e-05,2]
[422980894,1779700906000,-500.70766647,8.219e-05,2]
[422980892,1779700906000,-500.0,8.219e-05,2]
[422980885,1779700906000,-5000.0,8.137e-05,2]
[422980896,1779700906000,-500.0,8.219e-05,2]
[422980897,1779700906000,-500.0,8.219e-05,2]
[422980909,1779700906000,-300.0,8.382e-05,2]
[422980907,1779700906000,-300.0,8.382e-05,2]
[422980908,1779700906000,-300.0,8.382e-05,2]
[422980905,1779700906000,-300.0,8.382e-05,2]
[422980904,1779700906000,-300.0,8.382e-05,2]
[422980906,1779700906000,-300.0,8.382e-05,2]
[422980902,1779700906000,-300.0,8.382e-05,2]
[422980901,1779700906000,-300.0,8.382e-05,2]
[422980900,1779700906000,-171.11,8.219e-05,2]
[422980898,1779700906000,-500.0,8.219e-05,2]
[422980899,1779700906000,-500.0,8.219e-05,2]
[422980903,1779700906000,-300.0,8.382e-05,2]
[422980914,1779700907000,-300.0,8.382e-05,2]
[422980911,1779700907000,-300.0,8.382e-05,2]
[422980912,1779700907000,-300.0,8.382e-05,2]
[422980913,1779700907000,-300.0,8.382e-05,2]
[422980910,1779700907000,-300.0,8.382e-05,2]
[422980918,1779700907000,-500.0,8.493e-05,2]
[422980916,1779700907000,-500.0,8.493e-05,2]
[422980917,1779700907000,-500.0,8.493e-05,2]
[422980915,1779700907000,-300.0,8.382e-05,2]
[422980919,1779700907000,-500.0,8.493e-05,2]
[422980922,1779700941000,12000.17493319,0.00015,30]
[422980925,1779701055000,41.0965006,3.836e-05,2]
[422980924,1779701055000,128.2750094,3.836e-05,2]
[422980940,1779701149000,-880.08070129,7.975e-05,2]
[422980944,1779701237000,-816.89209646,7.975e-05,2]
[422980945,1779701249000,-444.37831502,7.975e-05,2]
[422980947,1779701350000,-1614.02629327,7.816e-05,2]
[422980981,1779701432000,-233.60797968,8.219e-05,2]
[422980978,1779701432000,-500.0,8.219e-05,2]
[422980980,1779701432000,-500.0,8.219e-05,2]
[422980983,1779701432000,-500.0,8.219e-05,2]
[422980982,1779701432000,-500.0,8.219e-05,2]
[422980977,1779701432000,-500.0,8.219e-05,2]
[422980971,1779701432000,-3385.97370673,7.816e-05,2]
[422980975,1779701432000,-500.0,8.219e-05,2]
[422980973,1779701432000,-5000.0,7.895e-05,2]
[422980974,1779701432000,-150.0,8.016e-05,2]
[422980972,1779701432000,-486.23243165,7.894e-05,2]
[422980979,1779701432000,-500.0,8.219e-05,2]
[422980976,1779701432000,-500.0,8.219e-05,2]
[422980984,1779701432000,-500.0,8.219e-05,2]
[422980989,1779701432000,-500.0,8.219e-05,2]
[422980986,1779701432000,-232.10570334,8.219e-05,2]
[422980985,1779701432000,-515.81,8.219e-05,2]
[422981001,1779701432000,-498.15862364,8.219e-05,2]
[422980999,1779701432000,-211.35,8.219e-05,2]
[422981000,1779701432000,-622.33,8.219e-05,2]
[422980993,1779701432000,-254.66749608,8.219e-05,2]
[422980995,1779701432000,-500.0,8.219e-05,2]
[422980998,1779701432000,-500.0,8.219e-05,2]
[422980991,1779701432000,-490.60234293,8.219e-05,2]
[422980987,1779701432000,-500.0,8.219e-05,2]
[422980988,1779701432000,-500.0,8.219e-05,2]
[422980997,1779701432000,-500.0,8.219e-05,2]
[422980990,1779701432000,-180.55341535,8.219e-05,2]
[422980992,1779701432000,-365.61250392,8.219e-05,2]
[422981017,1779701438000,-500.0,8.219e-05,2]
[422981028,1779701438000,-500.0,8.219e-05,2]
[422981030,1779701438000,-500.0,8.219e-05,2]
[422981020,1779701438000,-500.0,8.219e-05,2]
[422981019,1779701438000,-500.0,8.219e-05,2]
[422981021,1779701438000,-500.0,8.219e-05,2]
[422981018,1779701438000,-500.0,8.219e-05,2]
[422981015,1779701438000,-500.0,8.219e-05,2]
[422981008,1779701438000,-296.18840423,8.219e-05,2]
[422981014,1779701438000,-500.0,8.219e-05,2]
[422981011,1779701438000,-500.0,8.219e-05,2]
[422981010,1779701438000,-316.95,8.219e-05,2]
[422981016,1779701438000,-500.0,8.219e-05,2]
[422981009,1779701438000,-203.81159577,8.219e-05,2]
[422981012,1779701438000,-500.0,8.219e-05,2]
[422981006,1779701438000,-5000.0,8.137e-05,2]
[422981007,1779701438000,-1.84137636,8.219e-05,2]
[422981022,1779701438000,-581.41,8.219e-05,2]
[422981013,1779701438000,-500.0,8.219e-05,2]
[422981026,1779701438000,-500.0,8.219e-05,2]
[422981031,1779701438000,-208.20493665,8.219e-05,2]
[422981025,1779701438000,-500.0,8.219e-05,2]
[422981024,1779701438000,-500.0,8.219e-05,2]
[422981046,1779701438000,-157.90755984,8.493e-05,2]
[422981044,1779701438000,-500.0,8.493e-05,2]
[422981045,1779701438000,-500.0,8.493e-05,2]
[422981042,1779701438000,-500.0,8.493e-05,2]
[422981041,1779701438000,-397.35379083,8.219e-05,2]
[422981043,1779701438000,-546.49,8.493e-05,2]
[422981035,1779701438000,-500.0,8.219e-05,2]
[422981039,1779701438000,-500.0,8.219e-05,2]
[422981047,1779701438000,-404.39170727,8.493e-05,2]
[422981040,1779701438000,-500.0,8.219e-05,2]
[422981036,1779701438000,-500.0,8.219e-05,2]
[422981038,1779701438000,-500.0,8.219e-05,2]
[422981033,1779701438000,-500.0,8.219e-05,2]
[422981034,1779701438000,-500.0,8.219e-05,2]
[422981032,1779701438000,-500.0,8.219e-05,2]
[422981027,1779701438000,-500.0,8.219e-05,2]
[422981023,1779701438000,-500.0,8.219e-05,2]
[422981029,1779701438000,-355.21613724,8.219e-05,2]
[422981037,1779701438000,-162.14606535,8.219e-05,2]
[422981083,1779701440000,-105.21225729,8.493e-05,2]
[422981085,1779701440000,-177.31,8.493e-05,2]
[422981087,1779701440000,-352.03425744,8.493e-05,2]
[422981086,1779701440000,-581.41,8.493e-05,2]
[422981084,1779701440000,-500.0,8.493e-05,2]
[422981124,1779701443000,-176.52132253,8.5e-05,7]
[422981121,1779701443000,-500.0,8.493e-05,2]
[422981123,1779701443000,-252.5842558,8.5e-05,7]
[422981125,1779701443000,-600.0,8.549e-05,2]
[422981122,1779701443000,-231.17,8.493e-05,2]
[422981115,1779701443000,-238.64031516,8.493e-05,2]
[422981118,1779701443000,-500.0,8.493e-05,2]
[422981119,1779701443000,-183.39394228,8.493e-05,2]
[422981117,1779701443000,-500.0,8.493e-05,2]
[422981116,1779701443000,-500.0,8.493e-05,2]
[422981114,1779701443000,-147.96574256,8.493e-05,2]
[422981126,1779701443000,-201.8852755,8.573e-05,2]
[422981120,1779701443000,-316.60605772,8.493e-05,2]
[422981128,1779701443000,-4566.21,8.668e-05,2]
[422981131,1779701443000,-272.10221125,8.669e-05,2]
[422981130,1779701443000,-300.0,8.669e-05,2]
[422981137,1779701443000,-300.0,8.669e-05,2]
[422981140,1779701443000,-300.0,8.669e-05,2]
[422981143,1779701443000,-300.0,8.669e-05,2]
[422981142,1779701443000,-300.0,8.669e-05,2]
[422981139,1779701443000,-300.0,8.669e-05,2]
[422981138,1779701443000,-300.0,8.669e-05,2]
[422981141,1779701443000,-300.0,8.669e-05,2]
[422981133,1779701443000,-300.0,8.669e-05,2]
[422981132,1779701443000,-27.89778875,8.669e-05,2]
[422981127,1779701443000,-500.0,8.668e-05,2]
[422981136,1779701443000,-300.0,8.669e-05,2]
[422981135,1779701443000,-300.0,8.669e-05,2]
[422981129,1779701443000,-500.0,8.668e-05,2]
[422981134,1779701443000,-300.0,8.669e-05,2]
[422981155,1779701444000,-581.41,8.767e-05,2]
[422981154,1779701444000,-257.68,8.767e-05,2]
[422981157,1779701444000,-500.0,8.767e-05,2]
[422981158,1779701444000,-500.0,8.767e-05,2]
[422981159,1779701444000,-500.0,8.767e-05,2]
[422981156,1779701444000,-500.0,8.767e-05,2]
[422981160,1779701444000,-500.0,8.767e-05,2]
[422981150,1779701444000,-74.24628248,8.767e-05,2]
[422981145,1779701444000,-117.30316005,8.669e-05,2]
[422981148,1779701444000,-425.75371752,8.767e-05,2]
[422981147,1779701444000,-182.69683995,8.669e-05,2]
[422981144,1779701444000,-300.0,8.669e-05,2]
[422981152,1779701444000,-500.0,8.767e-05,2]
[422981161,1779701444000,-500.0,8.767e-05,2]
[422981162,1779701444000,-500.0,8.942e-05,2]